bitfinex/quotes_SOLUSD_20260302
["timestamp","ask_amount","ask_price","bid_price","bid_amount"]
[1772478834153,10.83375186,87.14,87.111,4.08166191]
[1772478834452,4.41662114,87.139,87.111,4.08166191]
[1772478835235,11.47604948,87.138,87.112,11.47947469]
[1772478835537,4.41662114,87.142,87.113,4.08166191]
[1772478837156,11.47491801,87.147,87.113,4.08166191]
[1772478837341,11.47491801,87.147,87.112,40.17816143]
[1772478837342,11.47491801,87.147,87.115,4.08166191]
[1772478837743,4.41662114,87.146,87.115,4.08166191]
[1772478838851,11.47512766,87.145,87.114,4.08166191]
[1772478839046,10.83375186,87.14,87.114,4.08166191]
[1772478839274,4.41662114,87.141,87.114,4.08166191]
[1772478839558,4.41662114,87.141,87.115,15.56074128]
[1772478839758,4.41662114,87.141,87.115,4.08166191]
[1772478839970,4.41662114,87.141,87.101,28.70200815]
[1772478839971,4.41662114,87.129,87.092,4.08166191]
[1772478840340,10.83375186,87.12,87.092,4.08166191]
[1772478840542,4.41662114,87.119,87.092,4.08166191]
[1772478840743,4.41662114,87.117,87.081,4.08166191]
[1772478841143,4.41662114,87.117,87.084,4.08166191]
[1772478842257,11.47894761,87.116,87.086,4.08166191]
[1772478843169,4.41662114,87.115,87.086,4.08166191]
[1772478843376,10.83375186,87.11,87.08,11.48359512]
[1772478843673,4.41662114,87.109,87.08,11.48359512]
[1772478844655,11.48000183,87.108,87.08,11.48359512]
[1772478844978,11.48000183,87.108,87.081,4.08166191]
[1772478846766,11.48000183,87.108,87.082,11.48342941]
[1772478847078,3.69383402,87.139,87.083,4.08166191]
[1772478847079,11.47949361,87.112,87.083,4.08166191]
[1772478849289,4.41662114,87.114,87.085,4.08166191]
[1772478850076,11.4772349,87.129,87.101,4.08166191]
[1772478851588,11.4765763,87.134,87.103,4.08166191]
[1772478851797,4.41662114,87.133,87.103,4.08166191]
[1772478852688,4.41662114,87.129,87.103,4.08166191]
[1772478853871,4.41662114,87.137,87.105,4.08166191]
[1772478855279,40.16571224,87.139,87.105,4.08166191]
[1772478855280,4.09984427,87.135,87.105,4.08166191]
[1772478856591,4.09984427,87.119,87.09,4.32030873]
[1772478857306,11.47868408,87.118,87.091,11.48224271]
[1772478857471,11.47868408,87.118,87.092,4.46320785]
[1772478858498,4.32175557,87.109,87.083,4.46320785]
[1772478858679,4.32175557,87.109,87.084,11.48316567]
[1772478858878,4.04937971,87.11,87.085,4.46320785]
[1772478859078,4.32175557,87.116,87.085,4.46320785]
[1772478859475,4.32175557,87.114,87.085,4.46320785]
[1772478859977,4.32175557,87.109,87.078,4.46320785]
[1772478861277,4.32175557,87.109,87.041,3.69383402]
[1772478861278,11.47907937,87.115,87.081,4.46320785]
[1772478861599,8.37113528,87.12,87.081,4.46320785]
[1772478861780,11.47855232,87.119,87.083,4.46320785]
[1772478862497,11.47855232,87.119,87.091,4.46320785]
[1772478863486,4.32175557,87.118,87.091,4.46320785]
[1772478864902,66.91294531,87.141,87.08,4.04937971]
[1772478864903,11.47747145,87.128,87.101,4.46320785]
[1772478865900,4.32175557,87.127,87.101,4.46320785]
[1772478866708,4.32175557,87.127,87.102,11.48079263]
[1772478866904,4.32175557,87.127,87.102,15.94400048]
[1772478867898,15.79938566,87.126,87.102,11.48079263]
[1772478868100,15.79938566,87.126,87.103,4.46320785]
[1772478868101,11.47763009,87.126,87.103,4.46320785]
[1772478868987,15.79938566,87.126,87.103,4.46320785]
[1772478869902,9.53448474,87.161,87.111,4.74753099]
[1772478870109,0.1,87.21,87.141,4.46320785]
[1772478870110,9.53448474,87.184,87.141,4.46320785]
[1772478870313,15.79188162,87.183,87.15,4.04937971]
[1772478870520,15.79188162,87.183,87.151,4.46320785]
[1772478871185,4.42175557,87.19,87.161,4.46320785]
[1772478871401,4.42175557,87.19,87.171,4.46320785]
[1772478871402,0.1,87.19,87.171,4.46320785]
[1772478871606,0.1,87.19,87.181,4.46320785]
[1772478872011,0.1,87.2,87.191,4.46320785]
[1772478872012,1e-08,87.2,87.191,4.46320785]
[1772478873114,0.1,87.21,87.191,4.46320785]
[1772478874197,4.42175557,87.21,87.181,4.46320785]
[1772478875793,4.42175557,87.21,87.18,4.03987738]
[1772478875996,4.42175557,87.21,87.173,15.93464969]
[1772478876200,4.32175557,87.208,87.173,15.93464969]
[1772478876412,4.32175557,87.208,87.17,4.03987738]
[1772478876593,4.32175557,87.208,87.161,4.46320785]
[1772478877294,4.32175557,87.208,87.17,4.03987738]
[1772478877500,4.32175557,87.208,87.161,4.46320785]
[1772478878090,4.32175557,87.208,87.17,4.03987738]
[1772478878491,4.32175557,87.206,87.17,4.03987738]
[1772478878693,4.32175557,87.206,87.17,8.50308523]
[1772478878908,4.32175557,87.206,87.171,11.47170503]
[1772478880008,4.32175557,87.204,87.171,11.47170503]
[1772478880308,4.32175557,87.204,87.171,15.93491288]
[1772478880520,4.32175557,87.204,87.172,4.46320785]
[1772478880702,11.56666809,87.21,87.181,4.46320785]
[1772478882113,0.1,87.21,87.191,4.46320785]
[1772478882614,4.32175557,87.209,87.181,4.46320785]
[1772478884208,0.1,87.21,87.181,4.46320785]
[1772478884397,0.1,87.21,87.191,4.46320785]
[1772478885114,0.1,87.23,87.201,4.46320785]
[1772478885422,0.1,87.23,87.211,4.46320785]
[1772478885617,0.1,87.23,87.221,4.46320785]
[1772478885825,0.1,87.24,87.221,4.46320785]
[1772478887613,0.1,87.24,87.222,11.46499736]
[1772478888203,0.1,87.24,87.223,4.24382576]
[1772478889821,0.1,87.24,87.225,4.24382576]
[1772478892410,2.65617743,87.246,87.231,4.24382576]
[1772478892612,11.46039859,87.257,87.231,4.24382576]
[1772478893622,4.17995263,87.256,87.222,4.24382576]
[1772478893815,4.17995263,87.256,87.196,1.14684159]
[1772478893816,4.17995263,87.239,87.193,11.46879779]
[1772478894204,4.17995263,87.229,87.186,4.24382576]
[1772478894523,4.17995263,87.218,87.172,4.24382576]
[1772478896961,4.17995263,87.209,87.171,4.24382576]
[1772478897903,11.46565463,87.217,87.181,4.24382576]
[1772478898103,4.17995263,87.216,87.181,4.24382576]
[1772478900248,4.17995263,87.234,87.201,4.24382576]
[1772478900529,15.64048256,87.256,87.221,4.24382576]
[1772478900729,0.1,87.26,87.25,10.8139257]
[1772478901027,4.17995263,87.273,87.25,10.8139257]
[1772478901330,15.63838145,87.272,87.241,4.24382576]
[1772478901530,4.17995263,87.272,87.25,10.8139257]
[1772478901922,4.17995263,87.272,87.241,4.24382576]
[1772478902126,4.17995263,87.269,87.22,10.8139257]
[1772478902421,4.17995263,87.267,87.231,4.24382576]
[1772478902619,4.17995263,87.289,87.25,10.8139257]
[1772478903248,4.17995263,87.289,87.251,4.24382576]
[1772478903553,4.17995263,87.289,87.25,10.8139257]
[1772478903717,4.17995263,87.289,87.24,10.8139257]
[1772478904721,4.46427577,87.279,87.216,0.36594]
[1772478904926,0.28432314,87.264,87.216,0.36594]
[1772478905235,4.17995263,87.249,87.216,0.36594]
[1772478905634,4.17995263,87.249,87.202,4.24382576]
[1772478905837,4.17995263,87.249,87.203,11.46749538]
[1772478906028,4.17995263,87.249,87.202,4.24382576]
[1772478906224,4.17995263,87.249,87.203,11.46749538]
[1772478906831,4.17995263,87.239,87.203,11.46749538]
[1772478907039,4.17995263,87.237,87.203,15.71132114]
[1772478908120,4.17995263,87.235,87.203,15.71132114]
[1772478909146,4.17995263,87.235,87.204,4.24382576]
[1772478909588,4.17995263,87.253,87.221,4.24382576]
[1772478909872,4.17995263,87.252,87.221,4.24382576]
[1772478910375,11.46118669,87.251,87.222,15.70882312]
[1772478910573,11.46118669,87.251,87.222,11.46499736]
[1772478910877,11.46118669,87.251,87.223,4.24382576]
[1772478911263,11.46118669,87.251,87.23,10.8139257]
[1772478911461,4.17995263,87.277,87.241,4.24382576]
[1772478911679,4.17995263,87.259,87.209,4.24382576]
[1772478915193,4.34182817,87.25,87.222,11.46499736]
[1772478917775,11.46144941,87.249,87.222,11.46499736]
[1772478917981,4.13643213,87.248,87.222,11.46499736]
[1772478919380,11.46171215,87.247,87.222,11.46499736]
[1772478919789,4.13643213,87.246,87.201,4.12396849]
[1772478920986,4.13643213,87.246,87.211,4.12396849]
[1772478921297,4.13643213,87.246,87.2,14.93789419]
[1772478921497,4.13643213,87.244,87.201,15.59172688]
[1772478922078,4.13643213,87.244,87.202,4.12396849]
[1772478922877,4.13643213,87.244,87.211,4.12396849]
[1772478923401,4.13643213,87.242,87.212,11.46631197]
[1772478923799,11.46171045,87.248,87.213,4.12396849]
[1772478924884,15.59814258,87.248,87.22,14.93789419]
[1772478925084,11.46171045,87.248,87.221,4.12396849]
[1772478925487,3.77049213,87.247,87.214,11.46604902]
[1772478925683,3.77049213,87.247,87.201,15.59172688]
[1772478925881,10.8139257,87.22,87.175,4.12396849]
[1772478926105,10.8139257,87.22,87.184,11.46999449]
[1772478926481,10.8139257,87.23,87.185,4.12396849]
[1772478926889,40.11967124,87.239,87.192,11.4689421]
[1772478927088,10.8139257,87.23,87.192,11.4689421]
[1772478927294,40.11967124,87.239,87.192,11.4689421]
[1772478927598,4.13643213,87.219,87.184,11.46999449]
[1772478928400,4.13643213,87.238,87.201,4.12396849]
[1772478928902,40.11967124,87.239,87.184,40.14498072]
[1772478928903,11.46184352,87.246,87.213,4.12396849]
[1772478929082,11.46158078,87.248,87.213,4.12396849]
[1772478929281,4.13643213,87.279,87.23,10.8139257]
[1772478929814,4.13643213,87.279,87.25,10.8139257]
[1772478930111,4.13643213,87.279,87.24,10.8139257]
[1772478930887,4.13643213,87.277,87.241,11.46250042]
[1772478931087,4.13643213,87.269,87.228,4.12396849]
[1772478931301,4.13643213,87.259,87.223,11.46486591]
[1772478931607,10.8139257,87.27,87.231,4.12396849]
[1772478931787,4.13643213,87.269,87.231,4.12396849]
[1772478932186,4.13643213,87.269,87.24,10.8139257]
[1772478932388,4.13643213,87.269,87.231,4.12396849]
[1772478933214,11.45895402,87.268,87.232,15.58765154]
[1772478933410,15.59538615,87.268,87.232,15.58765154]
[1772478933705,4.13643213,87.267,87.232,15.58765154]
[1772478934085,11.4584825,87.272,87.233,4.12396849]
[1772478935185,11.45540981,87.295,87.251,4.12396849]
[1772478935382,4.13643213,87.289,87.25,10.8096122]
[1772478935583,4.13643213,87.289,87.25,14.93358069]
[1772478935989,4.13643213,87.289,87.251,4.12396849]
[1772478936190,4.13643213,87.289,87.26,10.8096122]
[1772478936391,4.13643213,87.289,87.251,4.12396849]
[1772478937211,4.13643213,87.287,87.243,4.12396849]
[1772478937415,4.13643213,87.287,87.25,10.8096122]
[1772478938297,4.13643213,87.285,87.251,11.46118669]
[1772478939991,4.13643213,87.285,87.251,15.58515518]
[1772478940415,4.13643213,87.283,87.251,15.58515518]
[1772478940614,4.13643213,87.279,87.25,14.93358069]
[1772478940910,4.13643213,87.279,87.251,4.12396849]
[1772478941513,4.13643213,87.288,87.251,4.12396849]
[1772478942714,4.13643213,87.286,87.252,11.46105533]
[1772478943919,15.59227174,87.292,87.261,4.12396849]
[1772478944094,4.13643213,87.291,87.261,4.12396849]
[1772478944804,4.13643213,87.289,87.262,11.45974192]
[1772478945000,4.13643213,87.289,87.27,10.8096122]
[1772478945516,4.13643213,87.289,87.262,11.45974192]
[1772478945698,15.59152169,87.298,87.263,4.12396849]
[1772478946218,4.13643213,87.297,87.262,11.45974192]
[1772478946722,4.13643213,87.297,87.248,61.6]
[1772478946723,4.13643213,87.295,87.25,10.8096122]
[1772478946895,4.13643213,87.289,87.247,11.46171215]
[1772478948204,4.13643213,87.289,87.248,4.38844763]
[1772478948408,4.13643213,87.289,87.25,10.8096122]
[1772478949122,4.13972993,87.287,87.251,11.46118669]
[1772478950504,4.13972993,87.287,87.252,4.38844763]
[1772478951023,40.09714965,87.288,87.252,4.38844763]
[1772478951024,4.13972993,87.285,87.253,11.46092397]
[1772478951520,4.13972993,87.285,87.239,11.46276321]
[1772478951717,4.13972993,87.279,87.231,4.38844763]
[1772478951929,4.13972993,87.279,87.232,4.38844763]
[1772478952112,4.13972993,87.279,87.24,10.8096122]
[1772478952318,4.13972993,87.279,87.241,4.38844763]
[1772478952824,4.13972993,87.279,87.232,4.38844763]
[1772478953404,4.13972993,87.277,87.234,4.38844763]
[1772478953905,4.13972993,87.277,87.24,10.8096122]
[1772478954621,4.13972993,87.277,87.24,4.03529501]
[1772478956027,4.13972993,87.261,87.199,4.38844763]
[1772478956207,131.76589209,87.276,87.2,4.03529501]
[1772478956208,4.13972993,87.249,87.2,4.03529501]
[1772478956411,4.13972993,87.249,87.201,4.38844763]
[1772478956721,4.13972993,87.239,87.201,4.38844763]
[1772478957809,4.13972993,87.239,87.2,44.17290968]
[1772478957810,4.13972993,87.269,87.221,4.38844763]
[1772478958012,4.13972993,87.267,87.223,4.38844763]
[1772478958423,4.13972993,87.267,87.2,4.03529501]
[1772478958424,4.13972993,87.249,87.211,4.38844763]
[1772478959409,4.13972993,87.249,87.209,11.46661099]
[1772478959612,4.13972993,87.239,87.209,11.46661099]
[1772478960429,4.13972993,87.239,87.185,33.33005705]
[1772478960430,11.46289461,87.238,87.211,4.38844763]
[1772478961709,4.13972993,87.247,87.211,4.38844763]
[1772478961908,11.46144941,87.249,87.204,40.13577358]
[1772478961909,4.13972993,87.255,87.221,4.38844763]
[1772478962114,4.13972993,87.267,87.231,4.38844763]
[1772478962331,4.13972993,87.265,87.232,11.46368305]
[1772478962925,4.13972993,87.265,87.233,4.38844763]
[1772478963124,4.13972993,87.276,87.241,4.38844763]
[1772478964010,1.00896414,87.299,87.251,4.38844763]
[1772478964011,4.13972993,87.282,87.251,4.38844763]
[1772478964337,4.13972993,87.279,87.242,4.38844763]
[1772478965228,4.13972993,87.259,87.217,15.85410226]
[1772478965406,4.13972993,87.259,87.23,10.81632664]
[1772478965725,4.13972993,87.269,87.241,4.38844763]
[1772478966320,4.13972993,87.269,87.242,15.85081667]
[1772478966530,4.13972993,87.269,87.243,4.38844763]
[1772478967634,4.13972993,87.269,87.219,1.14653917]
[1772478967635,4.13972993,87.267,87.23,22.28024379]
[1772478967818,4.13972993,87.267,87.23,11.46391715]
[1772478968528,4.13972993,87.259,87.221,11.46512881]
[1772478969732,4.13972993,87.257,87.222,4.38844763]
[1772478969938,4.13972993,87.257,87.231,4.38844763]
[1772478970937,4.13972993,87.257,87.204,61.03048954]
[1772478970938,4.13972993,87.249,87.207,4.38844763]
[1772478971117,4.13972993,87.229,87.191,4.38844763]
[1772478972019,4.13972993,87.227,87.192,15.85738973]
[1772478972220,4.13972993,87.227,87.157,9.59749645]
[1772478972221,4.13972993,87.209,87.184,11.46991503]
[1772478972538,4.13972993,87.209,87.187,11.46959982]
[1772478972735,4.13972993,87.209,87.182,11.47022331]
[1772478972937,4.13972993,87.209,87.185,11.46973674]
[1772478973118,4.13972993,87.209,87.187,11.46959982]
[1772478973318,4.13972993,87.199,87.186,21.38351496]
[1772478973929,4.13972993,87.199,87.186,12.04816388]
[1772478974128,10.81632664,87.2,87.186,11.97979366]
[1772478974315,11.46741338,87.204,87.186,11.97979366]
[1772478974532,10.81632664,87.2,87.186,11.97979366]
[1772478975438,11.46618893,87.213,87.188,4.45325337]
[1772478976018,15.44792476,87.219,87.189,11.46933672]
[1772478976215,3.98253305,87.218,87.189,11.46933672]
[1772478976416,3.98253305,87.228,87.191,4.45325337]
[1772478976620,11.46434016,87.227,87.191,4.45325337]
[1772478977339,3.98253305,87.228,87.191,4.45325337]
[1772478977340,10.81632664,87.24,87.2,10.81632664]
[1772478979724,11.46320585,87.236,87.203,4.02244883]
[1772478980141,11.46320585,87.236,87.204,11.46736388]
[1772478980342,11.46320585,87.236,87.205,4.02244883]
[1772478981141,3.91969521,87.219,87.188,30.12738598]
[1772478981339,10.81632664,87.21,87.191,11.46907364]
[1772478981848,3.91969521,87.219,87.191,11.46907364]
[1772478982151,11.46552317,87.218,87.191,11.46907364]
[1772478982452,10.81632664,87.21,87.188,26.10493715]
[1772478982650,11.46408056,87.229,87.191,4.02244883]
[1772478983743,11.46408056,87.229,87.192,11.4689421]
[1772478983944,3.8662948,87.243,87.201,4.02244883]
[1772478984144,3.8662948,87.239,87.201,4.02244883]
[1772478985426,10.81632664,87.23,87.193,4.02244883]
[1772478985760,11.46289461,87.238,87.203,4.02244883]
[1772478985967,3.83170896,87.237,87.203,4.02244883]
[1772478987048,3.8147134,87.219,87.181,4.02244883]
[1772478987537,3.8147134,87.219,87.177,11.47091549]
[1772478987538,11.46289461,87.238,87.201,4.02244883]
[1772478987931,14.6142397,87.25,87.211,4.02244883]
[1772478988138,11.46052993,87.256,87.221,4.02244883]
[1772478988435,10.81632664,87.25,87.221,4.02244883]
[1772478988845,3.79791306,87.239,87.203,4.02244883]
[1772478989231,10.81632664,87.23,87.203,4.02244883]
[1772478989437,14.59763232,87.23,87.203,4.02244883]
[1772478989741,3.78130568,87.229,87.198,11.46811852]
[1772478990049,11.46420874,87.228,87.198,11.46811852]
[1772478990440,11.46420874,87.228,87.199,4.02244883]
[1772478991254,11.46420874,87.228,87.2,11.4678899]
[1772478991948,11.46420874,87.228,87.201,4.02244883]
[1772478992145,11.46322606,87.236,87.201,4.02244883]
[1772478992344,3.73261933,87.245,87.211,4.02244883]
[1772478992554,3.73261933,87.245,87.2,40.13761467]
[1772478992555,11.46099958,87.253,87.221,4.02244883]
[1772478992753,4.03781726,87.25,87.221,4.02244883]
[1772478994257,11.46144941,87.249,87.222,11.46499736]
[1772478995461,11.46144941,87.249,87.223,4.02244883]
[1772478995951,3.70108664,87.255,87.223,4.02244883]
[1772478996262,11.46144941,87.249,87.224,11.46473447]
[1772478996438,11.46144941,87.249,87.224,15.4871833]
[1772478996632,11.46000458,87.26,87.225,4.02244883]
[1772478996949,11.45888023,87.269,87.231,4.02244883]
[1772478997671,3.65513284,87.259,87.224,15.4871833]
[1772478997839,3.65513284,87.259,87.225,4.02244883]
[1772478998040,10.81626463,87.25,87.225,4.02244883]
[1772478998239,11.46144941,87.249,87.225,4.02244883]
[1772478998443,10.81626463,87.24,87.209,4.02244883]
[1772479000257,13.17640939,87.296,87.231,4.30677197]
[1772479000555,1.00896414,87.299,87.271,4.02244883]
[1772479001141,11.45501615,87.298,87.261,4.02244883]
[1772479002142,11.45501615,87.298,87.26,10.81626463]
[1772479002143,11.45501615,87.298,87.263,4.02244883]
[1772479003264,1.00896414,87.299,87.281,4.02244883]
[1772479003939,7.17198198,87.315,87.281,4.02244883]
[1772479004143,11.45291705,87.314,87.283,4.02244883]
[1772479006146,3.52645211,87.313,87.282,11.45711601]
[1772479006348,3.52645211,87.309,87.276,11.45789028]
[1772479006548,10.81626463,87.3,87.27,11.45860652]
[1772479007346,10.81626463,87.3,87.265,4.02244883]
[1772479007347,10.81626463,87.29,87.265,15.48179615]
[1772479007560,10.81626463,87.3,87.266,4.12565016]
[1772479008460,10.81626463,87.29,87.259,11.46010747]
[1772479008758,40.09209726,87.299,87.261,4.12565016]
[1772479008960,11.45488493,87.299,87.261,4.12565016]
[1772479009647,14.92830205,87.299,87.261,4.12565016]
[1772479010444,14.92830205,87.299,87.263,4.12565016]
[1772479010939,11.45488493,87.299,87.263,4.12565016]
[1772479011246,3.44780462,87.298,87.263,4.12565016]
[1772479012544,10.91626463,87.38,87.29,21.63252926]
[1772479012754,10.81626463,87.37,87.32,10.81626463]
[1772479012956,4.18192943,87.359,87.313,3.69383402]
[1772479013449,4.18192943,87.359,87.33,10.81626463]
[1772479015256,4.18192943,87.359,87.32,10.81626463]
[1772479015655,4.18192943,87.359,87.33,10.81626463]
[1772479016260,4.18192943,87.359,87.32,10.81626463]
[1772479016858,4.18192943,87.358,87.314,40.08520969]
[1772479018154,4.18192943,87.357,87.314,40.08520969]
[1772479019645,4.18192943,87.357,87.32,10.81626463]
[1772479020245,10.81626463,87.35,87.314,40.08520969]
[1772479020446,4.18192943,87.349,87.314,11.45291705]
[1772479020651,11.44741059,87.356,87.314,11.45291705]
[1772479020652,4.18192943,87.339,87.314,11.45291705]
[1772479021368,10.81626463,87.37,87.321,4.06680603]
[1772479021764,10.81626463,87.36,87.321,40.0819963]
[1772479022576,11.44521893,87.373,87.322,4.0536116]
[1772479022747,10.81626463,87.37,87.321,40.0819963]
[1772479022947,0.1,87.38,87.35,10.81626463]
[1772479023151,0.1,87.38,87.351,4.04056873]
[1772479023460,0.1,87.38,87.36,10.81626463]
[1772479023760,0.1,87.38,87.361,40.06364395]
[1772479023959,28.60004712,87.413,87.361,40.06364395]
[1772479023960,4.09772905,87.436,87.371,4.02767566]
[1772479024163,4.09772905,87.436,87.361,131.63768727]
[1772479024164,4.09772905,87.436,87.385,4.02767566]
[1772479024379,0.1,87.45,87.41,10.81626463]
[1772479024553,10.81626463,87.44,87.361,40.06364395]
[1772479024754,10.81626463,87.41,87.361,40.06364395]
[1772479025060,10.81626463,87.41,87.362,4.12565016]
[1772479025271,10.81626463,87.43,87.381,4.12565016]
[1772479025980,0.1,87.45,87.42,10.81626463]
[1772479026155,10.81626463,87.43,87.4,4.12565016]
[1772479026353,10.81626463,87.43,87.39,10.81626463]
[1772479026354,4.09772905,87.429,87.39,10.81626463]
[1772479027172,10.81626463,87.44,87.391,4.12565016]
[1772479027173,4.09772905,87.439,87.391,4.12565016]
[1772479027477,4.09772905,87.449,87.411,4.12565016]
[1772479027869,4.09772905,87.447,87.401,15.56716684]
[1772479028080,4.09772905,87.439,87.401,15.56716684]
[1772479028576,4.09772905,87.439,87.402,4.12565016]
[1772479029488,4.09772905,87.449,87.411,4.12565016]
[1772479029863,4.09772905,87.449,87.412,40.04026906]
[1772479030063,0.1,87.45,87.42,14.94191479]
[1772479030479,0.1,87.45,87.43,10.81626463]
[1772479030858,0.1,87.45,87.421,4.12565016]
[1772479031579,7.15235799,87.467,87.441,4.12565016]
[1772479031782,4.09772905,87.479,87.441,4.12565016]
[1772479031987,11.43262184,87.469,87.441,4.12565016]
[1772479032293,4.09772905,87.468,87.431,40.03156774]
[1772479032491,4.09772905,87.468,87.432,4.12565016]
[1772479033203,4.09772905,87.459,87.425,11.43836853]
[1772479033363,11.43262184,87.469,87.413,11.439946]
[1772479033364,4.09772905,87.449,87.413,11.439946]
[1772479033763,4.09772905,87.449,87.414,4.12565016]
[1772479034078,4.09772905,87.461,87.421,4.12565016]
[1772479034259,0.2688645,87.475,87.441,3.89789238]
[1772479034469,0.2688645,87.475,87.45,10.81626463]
[1772479034666,0.2688645,87.475,87.451,3.89789238]
[1772479035369,3.90875574,87.506,87.461,3.89789238]
[1772479035562,11.42948578,87.493,87.461,3.89789238]
[1772479035763,11.42826744,87.503,87.461,3.89789238]
[1772479035993,11.42826744,87.503,87.471,11.43236043]
[1772479036369,3.90875574,87.499,87.463,3.89789238]
[1772479036584,3.90875574,87.509,87.471,3.89789238]
[1772479037087,11.42773349,87.507,87.471,3.89789238]
[1772479037277,11.42843523,87.502,87.471,3.89789238]
[1772479037491,3.65666703,87.479,87.435,3.69947119]
[1772479037691,3.65666703,87.459,87.425,3.69947119]
[1772479037867,10.81626463,87.45,87.425,3.69947119]
[1772479038197,15.09124483,87.455,87.426,11.43824491]
[1772479038562,3.65666703,87.455,87.426,11.43824491]
[1772479039164,10.81626463,87.46,87.426,15.1377161]
[1772479039391,3.65666703,87.465,87.426,43.73332838]
[1772479039769,1.00895773,87.473,87.44,10.81626463]
[1772479040168,10.81626463,87.49,87.441,11.43628275]
[1772479040366,3.65666703,87.492,87.45,10.81626463]
[1772479040670,3.65666703,87.489,87.441,40.02698962]
[1772479041090,3.65666703,87.489,87.45,10.81626463]
[1772479041474,3.65666703,87.489,87.451,3.69947119]
[1772479041976,11.43144562,87.478,87.441,11.43628275]
[1772479042288,0.28432314,87.493,87.461,3.69947119]
[1772479042476,3.65666703,87.492,87.451,3.69947119]
[1772479042796,3.65666703,87.492,87.46,10.81626463]
[1772479043002,3.65666703,87.479,87.442,3.69947119]
[1772479043176,11.42948578,87.493,87.432,11.43745996]
[1772479043177,3.65666703,87.469,87.432,11.43745996]
[1772479043582,40.00320024,87.493,87.421,28.59711028]
[1772479043583,3.65666703,87.459,87.421,3.69947119]
[1772479043875,3.65666703,87.459,87.424,3.69947119]
[1772479044078,11.43275254,87.468,87.431,3.69947119]
[1772479044286,3.65666703,87.476,87.441,3.69947119]
[1772479044486,3.65666703,87.498,87.461,3.69947119]
[1772479044691,3.65666703,87.498,87.47,10.81626463]
[1772479045003,11.42809061,87.504,87.471,3.69947119]
[1772479045405,9.97824219,87.513,87.481,3.69947119]
[1772479045578,3.65666703,87.54,87.501,3.69947119]
[1772479045781,45.66543614,87.594,87.521,3.69947119]
[1772479045782,3.69383402,87.553,87.521,3.69947119]
[1772479045981,1e-08,87.553,87.531,39.98583358]
[1772479046175,11.41956628,87.569,87.531,15.12399507]
[1772479046503,10.81626463,87.56,87.517,3.69947119]
[1772479046805,3.65666703,87.559,87.515,11.42650576]
[1772479047190,3.65666703,87.539,87.5,10.81626463]
[1772479047491,3.65666703,87.529,87.496,11.4290939]
[1772479047695,3.65666703,87.529,87.491,11.42962883]
[1772479048077,3.65666703,87.527,87.485,11.43053094]
[1772479048279,3.65666703,87.519,87.485,11.43053094]
[1772479048577,3.65666703,87.519,87.486,3.69947119]
[1772479050785,39.98720408,87.528,87.447,46.88549849]
[1772479050786,11.42478492,87.529,87.491,3.69947119]
[1772479051194,3.65666703,87.528,87.491,3.69947119]
[1772479051391,11.42478492,87.529,87.491,3.69947119]
[1772479051788,15.08145195,87.529,87.491,3.69947119]
[1772479051976,3.65666703,87.519,87.483,11.43077844]
[1772479052297,3.65666703,87.519,87.473,3.69947119]
[1772479052897,3.65666703,87.517,87.474,15.13143954]
[1772479053100,3.65666703,87.517,87.475,3.69947119]
[1772479053297,3.65666703,87.547,87.481,3.69947119]
[1772479053489,3.65666703,87.555,87.511,3.69947119]
[1772479053682,3.65666703,87.539,87.5,10.81626463]
[1772479054207,3.65666703,87.529,87.49,10.81626463]
[1772479054390,3.65666703,87.529,87.491,3.69947119]
[1772479055487,3.65666703,87.519,87.482,3.69947119]
[1772479057012,3.65666703,87.509,87.465,11.43313637]
[1772479057311,3.65666703,87.499,87.465,11.43313637]
[1772479057610,10.75018479,87.5,87.451,3.69947119]
[1772479057611,3.65666703,87.489,87.451,3.69947119]
[1772479057798,3.65666703,87.489,87.46,14.44965598]
[1772479058002,3.65666703,87.489,87.46,3.69947119]
[1772479059908,3.69383402,87.523,87.46,3.69947119]
[1772479059909,11.42752662,87.508,87.462,3.69947119]
[1772479060098,15.08419365,87.508,87.471,3.69947119]
[1772479060499,11.42752662,87.508,87.471,3.69947119]
[1772479061217,11.42752662,87.508,87.461,40.01783651]
[1772479061218,3.65666703,87.507,87.461,15.13313876]
[1772479061415,3.65666703,87.489,87.453,11.4346825]
[1772479061598,3.65666703,87.489,87.454,3.69947119]
[1772479061796,11.43013899,87.488,87.455,11.434452]
[1772479062027,11.43013899,87.488,87.456,3.69947119]
[1772479062491,15.08680602,87.488,87.456,3.69947119]
[1772479062691,3.65666703,87.488,87.456,3.69947119]
[1772479063494,15.08680602,87.488,87.456,3.69947119]
[1772479063811,15.08680602,87.488,87.457,11.43419051]
[1772479064194,10.75018479,87.5,87.461,3.69947119]
[1772479064394,11.42845304,87.501,87.461,3.69947119]
[1772479064594,11.42776382,87.507,87.471,3.69947119]
[1772479065114,11.42632596,87.518,87.471,3.69947119]
[1772479065303,11.42632596,87.518,87.47,10.75018479]
[1772479065304,3.65666703,87.509,87.459,3.69947119]
[1772479065500,3.65666703,87.519,87.481,3.69947119]
[1772479065829,3.65666703,87.509,87.459,3.69947119]
[1772479066110,11.42569868,87.522,87.49,10.75018479]
[1772479066414,11.42569868,87.522,87.491,3.69947119]